bitfinex-derivatives/quotes_BTCF0:USTF0_20251109
["timestamp","ask_amount","ask_price","bid_price","bid_amount"]
[1762703915997,0.42213392,103800.0,103790.0,0.73419082]
[1762703916702,0.42213392,103800.0,103790.0,0.8120481]
[1762703917300,0.001,103800.0,103790.0,0.8120481]
[1762703917692,0.00014418,103810.0,103800.0,0.316251]
[1762703917894,0.00014418,103810.0,103800.0,0.71132398]
[1762703918089,4.18e-06,103810.0,103800.0,0.89225559]
[1762703918295,0.6374007,103830.0,103820.0,0.3162324]
[1762703918497,0.2766007,103830.0,103820.0,0.21989]
[1762703918692,0.2766007,103830.0,103820.0,0.58069]
[1762703918892,0.2766007,103830.0,103820.0,0.71130538]
[1762703919087,0.2766007,103830.0,103820.0,0.7169627]
[1762703919490,0.18026,103830.0,103820.0,0.7169627]
[1762703919695,0.18526,103830.0,103820.0,0.7169627]
[1762703919997,0.005,103830.0,103820.0,0.76837218]
[1762703920198,0.00014418,103840.0,103830.0,0.3162232]
[1762703920393,0.00014418,103840.0,103830.0,0.6770232]
[1762703921002,0.00014418,103840.0,103830.0,0.77157426]
[1762703921201,0.00014418,103840.0,103830.0,0.8537566]
[1762703921705,0.00014418,103840.0,103830.0,0.80234712]
[1762703922106,0.00214418,103840.0,103830.0,0.80334712]
[1762703925201,0.27872808,103840.0,103830.0,0.76907414]
[1762703925401,0.27872808,103840.0,103830.0,0.91737414]
[1762703925600,0.09846808,103840.0,103830.0,0.91737414]
[1762703926004,0.00214418,103840.0,103830.0,0.91737414]
[1762703926609,0.09846808,103840.0,103830.0,0.91737414]
[1762703926802,0.09846808,103840.0,103830.0,0.76907414]
[1762703926998,0.00214418,103840.0,103830.0,0.76907414]
[1762703930011,0.09846808,103840.0,103830.0,0.76907414]
[1762703931112,0.25287808,103840.0,103830.0,0.76020544]
[1762703931911,0.25287808,103840.0,103830.0,0.39940544]
[1762703932610,0.09846808,103840.0,103830.0,0.76020544]
[1762703933209,0.00214418,103840.0,103830.0,0.76020544]
[1762703933614,0.00214418,103840.0,103830.0,0.76929617]
[1762703933918,0.09846808,103840.0,103830.0,0.76929617]
[1762703934610,0.25287808,103840.0,103830.0,0.66387234]
[1762703934811,0.66420915,103840.0,103830.0,0.25345234]
[1762703935117,0.39830053,103840.0,103830.0,0.29657234]
[1762703935612,0.66420915,103840.0,103830.0,0.25070234]
[1762703936109,0.66420915,103840.0,103830.0,0.29643234]
[1762703938514,0.66420915,103840.0,103830.0,0.39276554]
[1762703939919,0.61703915,103840.0,103830.0,0.39276554]
[1762703940117,0.39830053,103840.0,103830.0,0.39276554]
[1762703941018,0.52207885,103840.0,103830.0,0.39276554]
[1762703943321,0.52207885,103840.0,103830.0,0.33070532]
[1762703943821,0.52207885,103840.0,103830.0,0.35640131]
[1762703944120,0.52207885,103840.0,103830.0,0.45273451]
[1762703944309,0.52207885,103840.0,103830.0,0.42703852]
[1762703944514,0.56421885,103840.0,103830.0,0.33070532]
[1762703944818,0.92501885,103840.0,103830.0,0.28497532]
[1762703945612,0.92501885,103840.0,103830.0,0.42703842]
[1762703946414,0.88287885,103840.0,103830.0,0.42703842]
[1762703947317,0.52207885,103840.0,103830.0,0.4784479]
[1762703947521,0.52207885,103840.0,103830.0,0.44417492]
[1762703948818,0.49112656,103840.0,103830.0,0.44417492]
[1762703949023,0.58395259,103840.0,103830.0,0.44417492]
[1762703950926,0.58395259,103840.0,103830.0,0.34784182]
[1762703952824,0.62812259,103840.0,103830.0,0.34784182]
[1762703953023,0.62812259,103840.0,103830.0,0.39844502]
[1762703953227,0.58395259,103840.0,103830.0,0.44417502]
[1762703956426,0.58395259,103840.0,103830.0,0.34784182]
[1762703957719,1.42507862,103840.0,103830.0,0.0924479]
[1762703957915,0.2609931,103830.0,103820.0,0.08579058]
[1762703958123,0.80744516,103830.0,103820.0,0.0343811]
[1762703958315,0.95169611,103830.0,103820.0,0.0343811]
[1762703959128,0.2934524,103820.0,103810.0,0.08593476]
[1762703959431,1.27805049,103820.0,103810.0,0.03452528]
[1762703959633,1.42195947,103820.0,103810.0,0.03452528]
[1762703960529,1.42195947,103820.0,103810.0,0.00014418]
[1762703960725,0.2837217,103810.0,103800.0,0.08579058]
[1762703960925,0.88353896,103810.0,103800.0,0.0343811]
[1762703961130,0.260571,103800.0,103790.0,0.24208058]
[1762703961432,0.5912094,103800.0,103790.0,0.1906711]
[1762703961823,0.40555734,103800.0,103790.0,0.1906711]
[1762703962327,0.5912094,103800.0,103790.0,0.15629]
[1762703962537,0.5932094,103800.0,103790.0,0.15729]
[1762703963131,0.9540094,103800.0,103790.0,0.15729]
[1762703963932,0.9520094,103800.0,103790.0,0.15629]
[1762703964229,0.9560094,103800.0,103790.0,0.2536603]
[1762703964421,0.9570094,103800.0,103790.0,0.15729]
[1762703964829,0.9570094,103800.0,103790.0,0.20302]
[1762703965424,0.9570094,103800.0,103790.0,0.15729]
[1762703966135,1.3021694,103800.0,103790.0,0.001]
[1762703967137,1.3021694,103800.0,103790.0,0.07749]
[1762703967436,1.3021694,103800.0,103790.0,0.14693]
[1762703968537,1.3021694,103800.0,103790.0,0.18587]
[1762703969128,1.3021694,103800.0,103790.0,0.2822403]
[1762703969534,1.3021694,103800.0,103790.0,0.18587]
[1762703970839,1.2908994,103800.0,103790.0,0.2822403]
[1762703971430,1.2908994,103800.0,103790.0,0.18587]
[1762703972733,0.9457394,103800.0,103790.0,0.18587]
[1762703973435,0.005,103800.0,103790.0,0.73586633]
[1762703973737,0.33541201,103810.0,103800.0,0.281231]
[1762703973938,0.33541201,103810.0,103800.0,0.67624202]
[1762703974128,0.23906021,103810.0,103800.0,0.67624202]
[1762703974327,0.00014418,103810.0,103800.0,0.67624202]
[1762703974839,0.00014418,103810.0,103800.0,0.76906805]
[1762703975035,0.00214418,103810.0,103800.0,0.76906805]
[1762703975243,0.00714418,103810.0,103800.0,0.77006805]
[1762703975943,0.10349588,103810.0,103800.0,0.67724202]
[1762703976239,0.24858588,103810.0,103800.0,0.58088102]
[1762703976430,0.93923636,103810.0,103800.0,0.18587]
[1762703976634,0.48561033,103810.0,103800.0,0.282231]
[1762703976836,0.34141191,103810.0,103800.0,0.31644202]
[1762703977033,0.00114418,103810.0,103800.0,0.67624202]
[1762703977342,0.09597021,103810.0,103800.0,0.67724202]
[1762703977542,0.09597021,103810.0,103800.0,0.77006805]
[1762703977543,0.00314418,103810.0,103800.0,0.77006805]
[1762703977744,0.00314418,103810.0,103800.0,0.67724202]
[1762703978547,0.09949588,103810.0,103800.0,0.67724202]
[1762703978741,0.33841191,103810.0,103800.0,0.67724202]
[1762703978945,0.33841191,103810.0,103800.0,0.58088102]
[1762703979350,0.33841191,103810.0,103800.0,0.67724202]
[1762703979634,0.48303184,103810.0,103800.0,0.67724202]
[1762703980341,0.48303184,103810.0,103800.0,0.58088102]
[1762703980541,0.52438184,103810.0,103800.0,0.18114102]
[1762703980939,0.52438184,103810.0,103800.0,0.22008102]
[1762703981340,0.48303184,103810.0,103800.0,0.31644202]
[1762703982442,0.39020581,103810.0,103800.0,0.31644202]
[1762703982747,0.48303184,103810.0,103800.0,0.31644202]
[1762703983140,0.38668014,103810.0,103800.0,0.31644202]
[1762703983346,0.38668014,103810.0,103800.0,0.3678515]
[1762703983543,0.00314418,103810.0,103800.0,0.7286515]
[1762703983743,0.00314418,103810.0,103800.0,0.78726651]
[1762703983946,0.09949588,103810.0,103800.0,0.69444048]
[1762703984446,0.17532588,103810.0,103800.0,0.69444048]
[1762703986453,0.26815191,103810.0,103800.0,0.69444048]
[1762703986653,0.26815191,103810.0,103800.0,0.33364048]
[1762703986947,0.33841191,103810.0,103800.0,0.33364048]
[1762703987753,0.33841191,103810.0,103800.0,0.69444048]
[1762703990450,0.33841191,103810.0,103800.0,0.33364048]
[1762703990954,0.33841191,103810.0,103800.0,0.23727948]
[1762703991455,0.33841191,103810.0,103800.0,0.69444048]
[1762703991658,0.33841191,103810.0,103800.0,0.33364048]
[1762703994856,0.33841191,103810.0,103800.0,0.23727948]
[1762703996462,0.33841191,103810.0,103800.0,0.33364048]
[1762703999366,0.33841191,103810.0,103800.0,0.23727948]
[1762703999866,0.33841191,103810.0,103800.0,0.33364048]
[1762704000570,0.24558588,103810.0,103800.0,0.18587]
[1762704001066,0.24558588,103810.0,103800.0,0.23739241]
[1762704001067,0.39041183,103810.0,103800.0,0.23739241]
[1762704001256,0.7165096,103810.0,103800.0,0.23739241]
[1762704001837,0.7375296,103810.0,103800.0,0.05252241]
[1762704001966,0.7375296,103810.0,103790.0,0.06870226]
[1762704001967,0.10892,103800.0,103790.0,0.06870226]
[1762704002168,0.46972,103800.0,103790.0,0.13090226]
[1762704002366,0.71070584,103800.0,103790.0,0.23066226]
[1762704003167,0.71070584,103800.0,103790.0,0.13090226]
[1762704003670,0.71070584,103800.0,103790.0,0.32703256]
[1762704004065,0.71070584,103800.0,103790.0,0.32803256]
[1762704004267,0.205281,103800.0,103790.0,0.68883256]
[1762704004464,0.20542448,103810.0,103800.0,0.258321]
[1762704004960,0.09650448,103810.0,103800.0,0.258321]
[1762704005161,0.00014418,103810.0,103800.0,0.258321]
[1762704005361,0.00014418,103810.0,103800.0,0.619121]
[1762704005657,0.4571396,103830.0,103820.0,0.2583025]
[1762704005658,0.1092,103830.0,103820.0,0.2583025]
[1762704005965,0.2055273,103840.0,103830.0,0.2582932]
[1762704006271,0.35005212,103840.0,103830.0,0.2582932]
[1762704006564,0.25372482,103840.0,103830.0,0.29263372]
[1762704006864,0.15105878,103850.0,103840.0,0.16196]
[1762704007067,0.56645878,103850.0,103840.0,0.19628847]
[1762704007265,0.72980407,103850.0,103840.0,0.03432847]
[1762704007461,0.72980407,103850.0,103830.0,0.29862027]
[1762704007462,0.2055239,103840.0,103830.0,0.29862027]
[1762704007664,0.2055239,103840.0,103830.0,0.2642918]
[1762704007970,0.2055239,103840.0,103830.0,0.2652918]
[1762704007971,0.23999919,103840.0,103830.0,0.2652918]
[1762704008164,0.14367529,103840.0,103830.0,0.2652918]
[1762704008373,0.14367529,103840.0,103830.0,0.2582918]
[1762704008673,0.14367529,103840.0,103830.0,0.2592918]
[1762704009569,0.23999919,103840.0,103830.0,0.2592918]
[1762704009773,0.14367529,103840.0,103830.0,0.2592918]
[1762704010163,0.09646438,103850.0,103840.0,0.2582839]
[1762704010369,0.15106438,103850.0,103840.0,0.29257764]
[1762704010576,0.20566438,103850.0,103840.0,0.29257764]
[1762704011574,0.20566438,103850.0,103840.0,0.29357764]
[1762704011874,0.00014418,103850.0,103840.0,0.65437764]
[1762704012474,0.00014418,103850.0,103840.0,0.29357764]
[1762704012475,0.09645878,103850.0,103840.0,0.29357764]
[1762704012676,0.09645878,103850.0,103840.0,0.65437764]
[1762704013178,0.00014418,103850.0,103840.0,0.65437764]
[1762704013876,0.00014418,103850.0,103840.0,0.6200839]
[1762704014378,0.5665706,103880.0,103870.0,0.16196]
[1762704014673,0.71163909,103880.0,103870.0,0.2582561]
[1762704015075,0.61534849,103880.0,103870.0,0.2582561]
[1762704015476,0.71163529,103880.0,103870.0,0.2582561]
[1762704015880,0.19980849,103880.0,103870.0,0.2582561]
[1762704016278,0.14806849,103880.0,103870.0,0.2582561]
[1762704016481,0.2057761,103870.0,103860.0,0.16210418]
[1762704016773,0.2127754,103880.0,103870.0,0.16196]
[1762704016979,0.5735754,103880.0,103870.0,0.16196]
[1762704017283,0.7184253,103880.0,103870.0,0.2582561]
[1762704017672,0.1448585,103880.0,103870.0,0.2582561]
[1762704018479,0.1488585,103880.0,103870.0,0.6200561]
[1762704018672,0.004,103880.0,103870.0,0.6200561]
[1762704019372,0.007,103880.0,103870.0,0.6200561]
[1762704019778,0.1032868,103880.0,103870.0,0.6200561]
[1762704020171,0.71733644,103880.0,103870.0,0.16296]
[1762704020970,0.71133644,103880.0,103870.0,0.16396]
[1762704021170,1.34640644,103880.0,103870.0,1e-07]
[1762704021979,0.74640644,103880.0,103870.0,1e-07]
[1762704023078,0.74640644,103880.0,103870.0,0.0090001]
[1762704023680,0.0962961,103870.0,103860.0,0.12556418]
[1762704023984,0.71142215,103870.0,103860.0,0.12556418]
[1762704024771,0.71142215,103870.0,103860.0,0.22286958]
[1762704024772,0.25632605,103870.0,103860.0,0.22286958]
[1762704024974,0.14684605,103870.0,103860.0,0.58366958]
[1762704025874,0.14684605,103870.0,103860.0,0.22286958]
[1762704026074,0.14684605,103870.0,103860.0,0.58366958]
[1762704026270,0.14784605,103870.0,103860.0,0.58366958]
[1762704026470,0.14584605,103870.0,103860.0,0.58466958]
[1762704026875,0.54226828,103890.0,103880.0,0.11914]
[1762704027277,0.1813362,103870.0,103860.0,0.21858308]
[1762704027673,0.3252752,103870.0,103860.0,0.21858958]
[1762704028073,0.3252752,103870.0,103860.0,0.21658958]
[1762704028277,0.228979,103870.0,103860.0,0.57738958]
[1762704028478,0.143939,103870.0,103860.0,0.57738958]
[1762704028680,0.40332,103880.0,103870.0,0.2154362]
[1762704028878,0.08504,103880.0,103870.0,0.2154362]
[1762704029076,0.68638635,103880.0,103870.0,0.2154362]
[1762704029281,0.1813362,103870.0,103860.0,0.11928418]
[1762704029584,0.1813362,103870.0,103860.0,0.21558968]
[1762704029778,0.1823362,103870.0,103860.0,0.21558968]
[1762704030381,0.1813362,103870.0,103860.0,0.21558968]
[1762704030586,0.68596848,103870.0,103860.0,0.06572418]
[1762704030985,0.68596848,103870.0,103860.0,0.12128418]
[1762704031180,0.68696848,103870.0,103860.0,0.12028418]
[1762704031380,0.32616838,103870.0,103860.0,0.21658958]
[1762704031787,0.22987228,103870.0,103860.0,0.57738958]
[1762704031982,0.32616838,103870.0,103860.0,0.21658958]
[1762704032188,0.68696838,103870.0,103860.0,0.21558958]
[1762704032486,0.14483228,103870.0,103860.0,0.21558958]
[1762704032685,0.001,103870.0,103860.0,0.57638958]
[1762704032988,0.54227058,103890.0,103880.0,0.2154268]
[1762704033378,0.68637595,103890.0,103880.0,0.2154268]
[1762704033988,0.68637595,103890.0,103880.0,0.11914]
[1762704034187,0.68937595,103890.0,103880.0,0.2164269]
[1762704034389,0.68937595,103890.0,103880.0,0.12014]
[1762704034893,0.68937595,103890.0,103880.0,0.2164269]
[1762704035084,0.69037595,103890.0,103880.0,0.2164269]
[1762704035587,0.69037595,103890.0,103880.0,0.12014]
[1762704035985,0.69037595,103890.0,103880.0,0.2164268]
[1762704037286,0.72544595,103890.0,103880.0,0.001]
[1762704037489,0.1887861,103870.0,103860.0,0.00014418]
[1762704037680,1.2535461,103870.0,103860.0,0.00014418]
[1762704037879,1.39790238,103870.0,103860.0,0.00014418]
[1762704038598,1.39790238,103870.0,103860.0,0.06372418]
[1762704038885,1.39245238,103870.0,103860.0,0.06372418]
[1762704039486,1.39245238,103870.0,103860.0,0.06472418]
[1762704039487,1.39645238,103870.0,103860.0,0.06472418]
[1762704040590,1.05329238,103870.0,103860.0,0.06472418]
[1762704041889,1.05329238,103870.0,103860.0,0.00114418]
[1762704046095,1.05329238,103870.0,103860.0,0.12028418]
[1762704047697,1.05329238,103870.0,103860.0,0.15596418]
[1762704047898,0.69249238,103870.0,103860.0,0.25226958]
[1762704048499,0.69249238,103870.0,103860.0,0.15596418]
[1762704049595,0.69249238,103870.0,103860.0,0.25226958]
[1762704050606,0.69249238,103870.0,103860.0,0.15596418]
[1762704051601,1.05329238,103870.0,103860.0,0.15596418]
[1762704052499,1.05329238,103870.0,103860.0,0.25226958]
[1762704052701,1.05329238,103870.0,103860.0,0.15596418]
[1762704053000,1.05329238,103870.0,103860.0,0.25226958]
[1762704053697,1.05329238,103870.0,103860.0,0.15596418]
[1762704054004,0.33169238,103870.0,103860.0,0.25226958]
[1762704054195,0.69249238,103870.0,103860.0,0.25226958]
[1762704054396,0.69249238,103870.0,103860.0,0.10040418]
[1762704054701,0.69249238,103870.0,103860.0,0.15560418]
[1762704055403,0.69249238,103870.0,103860.0,0.25190958]
[1762704060708,0.33169238,103870.0,103860.0,0.25190958]
[1762704060908,0.69249238,103870.0,103860.0,0.25190958]
[1762704063706,0.81618553,103870.0,103860.0,0.15560418]
[1762704066312,0.69249238,103870.0,103860.0,0.15560418]
[1762704066697,0.69249238,103870.0,103860.0,0.25190958]
[1762704069915,0.69249238,103870.0,103860.0,0.28610937]
[1762704071111,0.69249238,103870.0,103860.0,0.37886683]
[1762704072016,0.59619628,103870.0,103860.0,0.37886683]
[1762704072310,0.006,103870.0,103860.0,0.88355652]
[1762704072706,0.006,103870.0,103860.0,0.84935673]
[1762704072707,0.00098908,103870.0,103860.0,0.84935673]
[1762704073309,0.02614908,103870.0,103860.0,0.90452181]
[1762704073508,0.50840518,103870.0,103860.0,0.33739471]
[1762704073707,0.60116264,103870.0,103860.0,0.33739471]
[1762704073907,0.14760518,103870.0,103860.0,0.33739471]
[1762704074709,0.14760518,103870.0,103860.0,0.79095217]
[1762704074908,0.74635616,103870.0,103860.0,0.24108931]
[1762704075406,0.6535987,103870.0,103860.0,0.33739461]
[1762704075612,0.6535987,103870.0,103860.0,0.28626238]
[1762704075811,0.6535987,103870.0,103860.0,0.18995708]
[1762704076012,0.6535987,103870.0,103860.0,0.28626238]
[1762704078605,0.6535987,103870.0,103860.0,0.37901984]
[1762704080508,0.1965026,103870.0,103860.0,0.79095207]
[1762704080820,0.2927987,103870.0,103860.0,0.69819461]
[1762704081014,0.2927987,103870.0,103860.0,0.43015207]
[1762704081206,0.2927987,103870.0,103860.0,0.79095207]
[1762704081406,0.1965026,103870.0,103860.0,0.79095207]
[1762704081710,0.1713426,103870.0,103860.0,0.79095207]
[1762704082013,0.13666029,103870.0,103860.0,0.88370953]
[1762704082314,0.11150029,103870.0,103860.0,0.88370953]
[1762704082516,0.1466068,103880.0,103870.0,0.2292661]
[1762704082704,0.1466068,103880.0,103870.0,0.32202356]
[1762704082909,0.29032457,103880.0,103870.0,0.35637646]
[1762704083416,0.19403777,103880.0,103870.0,0.40750869]
[1762704083816,0.14371777,103880.0,103870.0,0.40750869]
[1762704084408,0.14671777,103880.0,103870.0,0.76830869]
[1762704084714,0.14671777,103880.0,103870.0,0.73495579]
[1762704084715,0.007,103880.0,103870.0,0.73495579]
[1762704085114,0.004,103880.0,103870.0,0.73595579]
[1762704085318,0.001,103880.0,103870.0,0.73695579]
[1762704085818,0.14674298,103890.0,103880.0,0.2292569]
[1762704086024,0.14674298,103890.0,103880.0,0.71714824]
[1762704086708,0.00014418,103890.0,103880.0,0.71714824]
[1762704087017,0.00014418,103890.0,103880.0,0.79576217]
[1762704087823,0.00114418,103890.0,103880.0,0.90731798]
[1762704088010,0.00114418,103890.0,103880.0,0.94162558]
[1762704088216,0.00114418,103890.0,103880.0,0.90731798]
[1762704088517,0.00114418,103890.0,103880.0,0.94261313]
[1762704088922,0.00114418,103890.0,103880.0,0.75709821]
[1762704089420,0.00114418,103890.0,103880.0,0.94261313]
[1762704091710,0.00114418,103890.0,103880.0,0.75709811]
[1762704091711,0.26248506,103890.0,103880.0,0.75709811]
[1762704091911,0.26248506,103890.0,103880.0,0.79872334]
[1762704092122,0.15542746,103890.0,103880.0,0.79872334]
[1762704092418,0.25170506,103890.0,103880.0,0.79872334]
[1762704092819,0.24092506,103890.0,103880.0,0.79872334]
[1762704093122,0.14464746,103890.0,103880.0,0.79872334]
[1762704093315,0.26248506,103890.0,103880.0,0.70596588]
[1762704093518,0.26248506,103890.0,103880.0,0.79872334]
[1762704093712,0.26248506,103890.0,103880.0,0.70243654]
[1762704093913,0.26248506,103890.0,103880.0,0.67167073]
[1762704094112,0.26248506,103890.0,103880.0,0.76442819]
[1762704094620,0.26248506,103890.0,103880.0,0.57538393]
[1762704094815,0.26248506,103890.0,103880.0,0.66814139]
[1762704095018,0.26248506,103890.0,103880.0,0.76442829]
[1762704096120,0.26248506,103890.0,103880.0,0.21458393]
[1762704096319,0.71604252,103890.0,103880.0,0.21458393]
[1762704096519,0.71604252,103890.0,103880.0,0.08161393]
[1762704096727,0.77944856,103890.0,103880.0,0.003]
[1762704097024,1.21384602,103890.0,103880.0,0.003]
[1762704097728,1.81384602,103890.0,103880.0,0.003]
[1762704098622,0.1178561,103870.0,103860.0,0.08550418]
[1762704098821,1.36657102,103870.0,103860.0,0.00014418]
[1762704099127,1.51141583,103870.0,103860.0,0.00014418]
[1762704099312,2.11141583,103870.0,103860.0,1e-08]
[1762704100425,0.1178746,103850.0,103840.0,0.2059495]
[1762704100730,1.05772741,103850.0,103840.0,0.07934]
[1762704101032,1.05772741,103850.0,103830.0,0.06395515]
[1762704101033,0.1178839,103840.0,103830.0,0.16356515]
[1762704101225,0.21064136,103840.0,103830.0,0.16356515]
[1762704101426,0.35440722,103840.0,103830.0,0.16356515]
[1762704101628,0.26164976,103840.0,103830.0,0.25989835]
[1762704101930,0.16532586,103840.0,103830.0,0.35265581]
[1762704102134,0.16532586,103840.0,103830.0,0.67916066]
[1762704102429,0.14376586,103840.0,103830.0,0.67916066]
[1762704102823,0.11901888,103850.0,103840.0,0.2255939]
[1762704103023,0.11901888,103850.0,103840.0,0.31835136]
[1762704103224,0.02270418,103850.0,103840.0,0.31835136]
[1762704103429,0.10723888,103850.0,103840.0,0.77190882]
[1762704103732,0.71514972,103850.0,103840.0,0.12927]
[1762704103922,0.62239226,103850.0,103840.0,0.12927]
[1762704104119,0.62339226,103850.0,103840.0,0.2265939]
[1762704104629,0.71614972,103850.0,103840.0,0.13027]
[1762704105125,0.71714972,103850.0,103840.0,0.13027]
[1762704105325,0.71614972,103850.0,103840.0,0.12927]
[1762704105529,0.25281216,103850.0,103840.0,0.77290882]
[1762704105722,0.26359216,103850.0,103840.0,0.13027]
[1762704105924,0.26359216,103850.0,103840.0,0.31935136]
[1762704108219,0.26359216,103850.0,103840.0,0.68015136]
[1762704108427,0.16727756,103850.0,103840.0,0.68015136]
[1762704109228,0.14571756,103850.0,103840.0,0.77290882]
[1762704109431,0.24203216,103850.0,103840.0,0.77290882]
[1762704109624,0.24453216,103850.0,103840.0,0.58382746]
[1762704109832,0.24453216,103850.0,103840.0,0.68015136]
[1762704110730,0.14821756,103850.0,103840.0,0.77290882]
[1762704112636,0.24453216,103850.0,103840.0,0.77290882]
[1762704113027,0.24453216,103850.0,103840.0,0.91850882]
[1762704114537,0.24453216,103850.0,103840.0,0.82575136]
[1762704115135,0.33728962,103850.0,103840.0,0.27587]
[1762704115436,0.69808962,103850.0,103840.0,0.27587]
[1762704115635,1.03940962,103850.0,103840.0,0.001]
[1762704116833,0.94665216,103850.0,103840.0,0.001]
[1762704117528,0.94665216,103850.0,103840.0,0.07125]
[1762704117729,0.94665216,103850.0,103840.0,0.001]
[1762704119537,0.94665216,103850.0,103840.0,0.02625]
[1762704119938,0.94665216,103850.0,103840.0,0.001]
[1762704124440,0.94665216,103850.0,103840.0,0.07125]
[1762704124845,0.94665216,103850.0,103840.0,0.11407]
[1762704125151,0.94653216,103850.0,103840.0,0.11407]
[1762704125341,0.94653216,103850.0,103840.0,0.210394]
[1762704125843,0.94653216,103850.0,103840.0,0.11407]
[1762704126249,0.60533216,103850.0,103840.0,0.210394]
[1762704126546,0.24453216,103850.0,103840.0,0.23614764]
[1762704126745,0.24453216,103850.0,103840.0,0.27044279]
[1762704126948,0.14821756,103850.0,103840.0,0.27044279]
[1762704127348,0.14821756,103850.0,103840.0,0.24468915]
[1762704127544,0.24453236,103850.0,103840.0,0.24468915]
[1762704128038,0.14821756,103850.0,103840.0,0.24468915]
[1762704128239,0.14821756,103850.0,103840.0,0.29582138]
[1762704128648,0.24453236,103850.0,103840.0,0.29582138]
[1762704129541,0.60533236,103850.0,103840.0,0.14836515]
[1762704129740,0.60533236,103850.0,103840.0,0.17414436]
[1762704130450,0.60533236,103850.0,103840.0,0.13984921]
[1762704132051,0.60533236,103850.0,103840.0,0.23617331]
[1762704132640,0.24453236,103850.0,103840.0,0.23617331]
[1762704132943,0.24453236,103850.0,103840.0,0.27046846]
[1762704133159,0.24453236,103850.0,103840.0,0.24468925]
[1762704133336,0.60533236,103850.0,103840.0,0.24468925]
[1762704133651,0.24453236,103850.0,103840.0,0.27046842]
[1762704133852,0.60533236,103850.0,103840.0,0.29582148]
[1762704134148,0.14821756,103850.0,103840.0,0.29582148]
[1762704134349,0.24453236,103850.0,103840.0,0.29582148]
[1762704134553,0.60533236,103850.0,103840.0,0.29582148]
[1762704135450,0.60533236,103850.0,103840.0,0.24468925]
[1762704135654,0.60533236,103850.0,103840.0,0.29582148]
[1762704135840,0.24453236,103850.0,103840.0,0.29582148]
[1762704136044,0.60533236,103850.0,103840.0,0.19949738]
[1762704136345,0.60533236,103850.0,103840.0,0.14836515]
[1762704136648,0.60533236,103850.0,103840.0,0.27047268]
[1762704136849,0.60533236,103850.0,103840.0,0.29582138]
[1762704137143,0.50901756,103850.0,103840.0,0.29582138]
[1762704137344,0.60533226,103850.0,103840.0,0.41954354]
[1762704138754,0.24453226,103850.0,103840.0,0.29582138]
[1762704138954,0.60533226,103850.0,103840.0,0.29582138]
[1762704139156,0.24453226,103850.0,103840.0,0.29582138]
[1762704139350,0.24203226,103850.0,103840.0,0.41954354]
[1762704140555,0.24203226,103850.0,103840.0,0.29582138]
[1762704140759,0.60283226,103850.0,103840.0,0.24468915]
[1762704140950,0.60283226,103850.0,103840.0,0.29582138]
[1762704141551,0.24203226,103850.0,103840.0,0.29582138]
[1762704141750,0.60283226,103850.0,103840.0,0.29582138]
[1762704142656,0.24203226,103850.0,103840.0,0.29582138]
[1762704143458,0.24203226,103850.0,103840.0,0.41954354]
[1762704145059,0.14571756,103850.0,103840.0,0.41954354]
[1762704145359,0.14571756,103850.0,103840.0,0.56744354]
[1762704145556,0.24203226,103850.0,103840.0,0.56744354]
[1762704147363,0.14571756,103850.0,103840.0,0.56744354]
[1762704148059,0.24203226,103850.0,103840.0,0.56744354]
[1762704150258,0.14571756,103850.0,103840.0,0.56744354]
[1762704150558,0.14571756,103850.0,103840.0,0.53314839]
[1762704153661,0.60283226,103850.0,103840.0,0.16520223]
[1762704153963,0.60283226,103850.0,103840.0,0.17430986]
[1762704156261,0.60283226,103850.0,103840.0,0.27063386]
[1762704156458,0.60283226,103850.0,103840.0,0.14849116]
[1762704158061,0.60283226,103850.0,103840.0,0.17433378]
[1762704159067,0.60283226,103850.0,103840.0,0.14849116]
[1762704159959,0.60283226,103850.0,103840.0,0.24481516]
[1762704161269,0.60283226,103850.0,103840.0,0.14849116]
[1762704161669,0.60283226,103850.0,103840.0,0.24481516]
[1762704162074,0.60283226,103850.0,103840.0,0.14849116]
[1762704162264,0.65539739,103850.0,103840.0,0.14849116]
[1762704162464,0.65539739,103850.0,103840.0,0.17433196]
[1762704162665,0.60283226,103850.0,103840.0,0.17433196]
[1762704163273,0.60283226,103850.0,103840.0,0.27065596]
[1762704163875,0.60283226,103850.0,103840.0,0.27065259]
[1762704164075,0.60283226,103850.0,103840.0,0.24481516]
[1762704164274,0.60283226,103850.0,103840.0,0.27065175]
[1762704164474,0.60283226,103850.0,103840.0,0.17432775]
[1762704165968,1.12046944,103850.0,103840.0,0.02683659]
[1762704166170,1.72046944,103850.0,103840.0,9e-08]
[1762704166369,0.0963333,103830.0,103820.0,0.27641822]
[1762704166571,0.4571333,103830.0,103820.0,0.20125757]
[1762704166770,0.60215701,103830.0,103820.0,0.20125757]
[1762704167173,0.60215701,103830.0,103820.0,0.15012534]
[1762704167978,0.60215701,103830.0,103820.0,0.11570418]
[1762704168478,0.94339701,103830.0,103820.0,0.11870418]
[1762704168672,0.94339701,103830.0,103820.0,0.11970418]
[1762704169373,0.94339701,103830.0,103820.0,0.11870418]
[1762704169567,0.94439701,103830.0,103820.0,0.11570418]
[1762704169770,0.94739701,103830.0,103820.0,0.11670418]
[1762704171771,1.07111917,103830.0,103820.0,0.00114418]
[1762704171970,1.43191917,103830.0,103820.0,8e-08]
[1762704172681,2.03191917,103830.0,103820.0,8e-08]
[1762704172879,0.0963426,103820.0,103810.0,4.26e-06]
[1762704173180,0.77768683,103820.0,103810.0,4.26e-06]
[1762704173384,0.72512994,103820.0,103810.0,4.26e-06]
[1762704173572,1.37767914,103820.0,103810.0,4.26e-06]
[1762704174277,1.37869511,103820.0,103810.0,4.26e-06]
[1762704174779,0.0963704,103790.0,103780.0,0.18293685]
[1762704174979,0.92097256,103790.0,103780.0,0.14851569]
[1762704175182,0.99498246,103790.0,103780.0,0.14851569]
[1762704175381,0.94140914,103790.0,103780.0,0.14851569]
[1762704175583,0.94140914,103790.0,103780.0,0.09738346]
[1762704176077,0.94240914,103790.0,103780.0,0.09838346]
[1762704176279,0.94240914,103790.0,103780.0,0.17690354]
[1762704176580,0.94240914,103790.0,103780.0,0.09838346]
[1762704177377,0.48523874,103790.0,103780.0,0.55556316]
[1762704177680,0.60232914,103790.0,103780.0,0.09838346]
[1762704178280,0.7260513,103790.0,103780.0,0.09584346]
[1762704178877,0.60232914,103790.0,103780.0,0.09584346]
[1762704180385,0.7260513,103790.0,103780.0,0.05921346]
[1762704180586,0.7260513,103790.0,103780.0,0.02256346]
[1762704180783,0.7260513,103790.0,103780.0,0.00111346]
[1762704180987,0.65585621,103790.0,103780.0,0.09480346]
[1762704181188,0.60232914,103790.0,103780.0,0.09480346]
[1762704181389,0.94236914,103790.0,103780.0,0.09480346]
[1762704181583,0.58156914,103790.0,103780.0,0.19118316]
[1762704181782,0.94236914,103790.0,103780.0,0.09480346]
[1762704182286,0.94236914,103790.0,103780.0,0.19118316]
[1762704183179,0.94236914,103790.0,103780.0,0.09480346]
[1762704183681,0.94236914,103790.0,103780.0,0.19118316]
[1762704184891,0.60232914,103790.0,103780.0,0.19118316]